fUSD/lending_fUSD_20250629
["ID","MTS","AMOUNT","RATE_DAILY","PERIOD"]
[368565130,1751211058836,-1017.18,0.00022191,2]
[368565131,1751211058846,-490.0,0.00022191,2]
[368565132,1751211058855,-490.0,0.00022191,2]
[368565133,1751211058865,-490.0,0.00022191,2]
[368565134,1751211058874,-490.0,0.00022191,2]
[368565135,1751211058883,-490.0,0.00022191,2]
[368565136,1751211058892,-490.0,0.00022191,2]
[368565137,1751211058902,-490.0,0.00022191,2]
[368565138,1751211058911,-490.0,0.00022191,2]
[368565139,1751211058921,-493.34349363,0.00022191,2]
[368565140,1751211058930,-490.0,0.00022191,2]
[368565141,1751211058939,-498.79554926,0.00022191,2]
[368565142,1751211058948,-490.0,0.00022191,2]
[368565143,1751211058958,-723.76,0.00022191,2]
[368565144,1751211058967,-614.04,0.00022191,2]
[368565145,1751211058978,-671.46,0.00022191,2]
[368565146,1751211058987,-490.0,0.00022191,2]
[368565147,1751211058996,-490.0,0.00022191,2]
[368565148,1751211059006,-524.94,0.00022191,2]
[368565149,1751211059016,-490.0,0.00022191,2]
[368565150,1751211059026,-490.0,0.00022191,2]
[368565151,1751211059036,-490.0,0.00022191,2]
[368565152,1751211059045,-490.0,0.00022191,2]
[368565153,1751211059055,-682.48,0.00022191,2]
[368565154,1751211059064,-1192.52,0.00022191,2]
[368565155,1751211059075,-1241.89,0.00022191,2]
[368565156,1751211059085,-418.87626018,0.00022191,2]
[368565157,1751211059095,-490.0,0.00022191,2]
[368565158,1751211059105,-490.0,0.00022191,2]
[368565159,1751211059114,-1000.0,0.00022191,2]
[368565160,1751211059124,-490.0,0.00022191,2]
[368565161,1751211059134,-606.76,0.00022191,2]
[368565162,1751211059143,-1000.0,0.00022191,2]
[368565163,1751211059152,-350.0,0.00022191,2]
[368565164,1751211059162,-613.99,0.00022191,2]
[368565165,1751211059171,-490.0,0.00022191,2]
[368565166,1751211059181,-490.0,0.00022191,2]
[368565167,1751211059190,-490.0,0.00022191,2]
[368565168,1751211059199,-490.0,0.00022191,2]
[368565169,1751211059209,-490.0,0.00022191,2]
[368565170,1751211059219,-1040.2,0.00022191,2]
[368565171,1751211059228,-884.76,0.00022191,2]
[368565172,1751211059237,-505.89,0.00022191,2]
[368565173,1751211059245,-490.0,0.00022191,2]
[368565174,1751211059255,-576.39,0.00022191,2]
[368565175,1751211059264,-518.53,0.00022191,2]
[368565176,1751211059273,-490.0,0.00022191,2]
[368565177,1751211059282,-490.0,0.00022191,2]
[368565178,1751211059291,-490.0,0.00022191,2]
[368565179,1751211059300,-490.0,0.00022191,2]
[368565180,1751211059310,-679.04,0.00022191,2]
[368565181,1751211059319,-490.0,0.00022191,2]
[368565182,1751211059330,-490.0,0.00022191,2]
[368565183,1751211059340,-490.0,0.00022191,2]
[368565184,1751211059349,-490.0,0.00022191,2]
[368565185,1751211059359,-580.09,0.00022191,2]
[368565186,1751211059368,-490.0,0.00022191,2]
[368565187,1751211059379,-490.0,0.00022191,2]
[368565188,1751211059389,-1397.69,0.00022191,2]
[368565189,1751211059399,-490.0,0.00022191,2]
[368565190,1751211059409,-490.0,0.00022191,2]
[368565191,1751211059419,-490.0,0.00022191,2]
[368565192,1751211059428,-490.0,0.00022191,2]
[368565193,1751211059438,-658.71,0.00022191,2]
[368565194,1751211059449,-490.0,0.00022191,2]
[368565195,1751211059459,-490.0,0.00022191,2]
[368565196,1751211059469,-490.0,0.00022191,2]
[368565197,1751211059478,-1158.94,0.00022191,2]
[368565198,1751211059489,-490.0,0.00022191,2]
[368565199,1751211059499,-490.0,0.00022191,2]
[368565200,1751211059509,-490.0,0.00022191,2]
[368565201,1751211059519,-590.01,0.00022191,2]
[368565202,1751211059529,-1237.67,0.00022191,2]
[368565203,1751211059539,-490.0,0.00022191,2]
[368565204,1751211059548,-1415.72,0.00022191,2]
[368565205,1751211059557,-490.0,0.00022191,2]
[368565206,1751211059567,-490.0,0.00022191,2]
[368565207,1751211059577,-838.29,0.00022191,2]
[368565208,1751211059586,-490.0,0.00022191,2]
[368565209,1751211059596,-1113.58,0.00022191,2]
[368565210,1751211059605,-238.1699144,0.00022191,2]
[368565211,1751211059615,-490.0,0.00022191,2]
[368565212,1751211059626,-490.0,0.00022191,2]
[368565213,1751211059635,-490.0,0.00022191,2]
[368565214,1751211059644,-490.0,0.00022191,2]
[368565215,1751211059654,-490.0,0.00022191,2]
[368565216,1751211059664,-490.0,0.00022191,2]
[368565217,1751211059673,-490.0,0.00022191,2]
[368565218,1751211059683,-758.39,0.00022191,2]
[368565219,1751211059693,-490.0,0.00022191,2]
[368565220,1751211059702,-522.25,0.00022191,2]
[368565221,1751211059715,-490.0,0.00022191,2]
[368565222,1751211059726,-564.8,0.00022191,2]
[368565223,1751211059735,-755.23,0.00022191,2]
[368565224,1751211059745,-490.0,0.00022191,2]
[368565225,1751211059755,-714.69,0.00022191,2]
[368565226,1751211059764,-490.0,0.00022191,2]
[368565227,1751211059774,-490.0,0.00022191,2]
[368565228,1751211059784,-1123.96,0.00022191,2]
[368565229,1751211059797,-671.39,0.00022191,2]
[368565230,1751211059808,-816.52,0.00022191,2]
[368565231,1751211059818,-490.0,0.00022191,2]
[368565232,1751211059829,-490.0,0.00022191,2]
[368565233,1751211059838,-490.0,0.00022191,2]
[368565234,1751211059851,-490.0,0.00022191,2]
[368565235,1751211059860,-496.82591929,0.00022191,2]
[368565236,1751211059869,-490.0,0.00022191,2]
[368565237,1751211059879,-490.0,0.00022191,2]
[368565238,1751211059888,-490.0,0.00022191,2]
[368565239,1751211059898,-490.0,0.00022191,2]
[368565240,1751211059909,-440.70735753,0.00022191,2]
[368565241,1751211059919,-490.0,0.00022191,2]
[368565242,1751211059928,-490.0,0.00022191,2]
[368565243,1751211059938,-1013.83,0.00022191,2]
[368565244,1751211059947,-490.0,0.00022191,2]
[368565245,1751211059957,-817.0,0.00022191,2]
[368565246,1751211059967,-490.0,0.00022191,2]
[368565247,1751211059977,-490.0,0.00022191,2]
[368565248,1751211059986,-436.62422026,0.00022191,2]
[368565249,1751211059995,-490.0,0.00022191,2]
[368565250,1751211060005,-603.7,0.00022191,2]
[368565251,1751211060015,-490.0,0.00022191,2]
[368565252,1751211060024,-490.0,0.00022191,2]
[368565253,1751211060033,-490.0,0.00022191,2]
[368565254,1751211060043,-490.0,0.00022191,2]
[368565255,1751211060052,-490.0,0.00022191,2]
[368565256,1751211060062,-663.92,0.00022191,2]
[368565257,1751211060071,-490.0,0.00022191,2]
[368565258,1751211060081,-490.0,0.00022191,2]
[368565259,1751211060091,-490.0,0.00022191,2]
[368565260,1751211060101,-490.0,0.00022191,2]
[368565261,1751211060111,-490.0,0.00022191,2]
[368565262,1751211060121,-511.61,0.00022191,2]
[368565263,1751211060132,-490.0,0.00022191,2]
[368565264,1751211060142,-1229.07,0.00022191,2]
[368565265,1751211060151,-490.0,0.00022191,2]
[368565266,1751211060163,-490.0,0.00022191,2]
[368565267,1751211060172,-490.0,0.00022191,2]
[368565268,1751211060182,-490.0,0.00022191,2]
[368565269,1751211060192,-490.0,0.00022191,2]
[368565270,1751211060203,-503.49973466,0.00022191,2]
[368565271,1751211060213,-490.0,0.00022191,2]
[368565272,1751211060223,-827.34,0.00022191,2]
[368565273,1751211060234,-546.87,0.00022191,2]
[368565274,1751211060243,-490.0,0.00022191,2]
[368565275,1751211060254,-490.0,0.00022191,2]
[368565276,1751211060264,-490.0,0.00022191,2]
[368565277,1751211060273,-490.0,0.00022191,2]
[368565278,1751211060283,-778.78,0.00022191,2]
[368565279,1751211060293,-490.0,0.00022191,2]
[368565280,1751211060302,-193.7543234,0.00022191,2]
[368565281,1751211060311,-490.0,0.00022191,2]
[368565282,1751211060321,-490.0,0.00022191,2]
[368565283,1751211060331,-490.0,0.00022191,2]
[368565284,1751211060340,-490.0,0.00022191,2]
[368565285,1751211060350,-490.0,0.00022191,2]
[368565286,1751211060360,-1072.55,0.00022191,2]
[368565287,1751211060369,-509.46,0.00022191,2]
[368565288,1751211060379,-490.0,0.00022191,2]
[368565289,1751211060389,-609.45,0.00022191,2]
[368565290,1751211060398,-490.0,0.00022191,2]
[368565291,1751211060408,-490.0,0.00022191,2]
[368565292,1751211060417,-490.0,0.00022191,2]
[368565293,1751211060427,-543.33793734,0.00022191,2]
[368565294,1751211060436,-490.0,0.00022191,2]
[368565295,1751211060446,-490.0,0.00022191,2]
[368565296,1751211060455,-865.61,0.00022191,2]
[368565297,1751211060465,-153.27900942,0.00022191,2]
[368565298,1751211060474,-490.0,0.00022191,2]
[368565299,1751211060483,-1338.06,0.00022191,2]
[368565300,1751211060492,-490.0,0.00022191,2]
[368565301,1751211060501,-490.0,0.00022191,2]
[368565302,1751211060510,-490.0,0.00022191,2]
[368565303,1751211060520,-490.0,0.00022191,2]
[368565304,1751211060529,-490.0,0.00022191,2]
[368565305,1751211060538,-490.0,0.00022191,2]
[368565306,1751211060547,-490.0,0.00022191,2]
[368565307,1751211060557,-490.0,0.00022191,2]
[368565308,1751211060566,-490.0,0.00022191,2]
[368565309,1751211060575,-490.0,0.00022191,2]
[368565310,1751211060585,-490.0,0.00022191,2]
[368565311,1751211060594,-490.0,0.00022191,2]
[368565312,1751211060603,-1119.33,0.00022191,2]
[368565313,1751211060612,-490.0,0.00022191,2]
[368565314,1751211060622,-731.45,0.00022191,2]
[368565315,1751211060631,-490.0,0.00022191,2]
[368565316,1751211060640,-493.56856071,0.00022191,2]
[368565317,1751211060649,-490.0,0.00022191,2]
[368565318,1751211060659,-490.0,0.00022191,2]
[368565319,1751211060669,-490.0,0.00022191,2]
[368565320,1751211060678,-610.19,0.00022191,2]
[368565321,1751211060688,-490.0,0.00022191,2]
[368565322,1751211060697,-553.38,0.00022191,2]
[368565323,1751211060706,-490.0,0.00022191,2]
[368565324,1751211060718,-575.15,0.00022191,2]
[368565325,1751211060728,-612.9,0.00022191,2]
[368565326,1751211060737,-490.0,0.00022191,2]
[368565327,1751211060746,-490.0,0.00022191,2]
[368565328,1751211060757,-490.0,0.00022191,2]
[368565329,1751211060766,-490.0,0.00022191,2]
[368565330,1751211060775,-608.51,0.00022191,2]
[368565331,1751211060784,-490.0,0.00022191,2]
[368565332,1751211060793,-490.0,0.00022191,2]
[368565333,1751211060803,-490.0,0.00022191,2]
[368565334,1751211060812,-490.0,0.00022191,2]
[368565335,1751211060821,-1870.44,0.00022191,2]
[368565336,1751211060830,-1823.1,0.00022191,2]
[368565337,1751211060839,-490.0,0.00022191,2]
[368565338,1751211060848,-492.31896629,0.00022191,2]
[368565339,1751211060857,-490.0,0.00022191,2]
[368565340,1751211060866,-490.0,0.00022191,2]
[368565341,1751211060875,-2507.62,0.00022191,2]
[368565342,1751211060885,-658.9,0.00022191,2]
[368565343,1751211060894,-490.0,0.00022191,2]
[368565344,1751211060903,-709.09,0.00022191,2]
[368565345,1751211060912,-490.0,0.00022191,2]
[368565346,1751211060921,-588.66,0.00022191,2]
[368565347,1751211060930,-1531.94,0.00022191,2]
[368565348,1751211060940,-519.81,0.00022191,2]
[368565349,1751211060949,-490.0,0.00022191,2]
[368565350,1751211060958,-1753.28,0.00022191,2]
[368565351,1751211060967,-662.15,0.00022191,2]
[368565352,1751211061163,-490.0,0.00022191,2]
[368565353,1751211061172,-490.0,0.00022191,2]
[368565354,1751211061182,-490.0,0.00022191,2]
[368565355,1751211061192,-490.0,0.00022191,2]
[368565356,1751211061201,-779.16,0.00022191,2]
[368565357,1751211061212,-1072.24,0.00022191,2]
[368565358,1751211061221,-2135.99,0.00022191,2]
[368565359,1751211061230,-1585.12,0.00022191,2]
[368565360,1751211061239,-490.0,0.00022191,2]
[368565361,1751211061249,-490.0,0.00022191,2]
[368565362,1751211061258,-490.0,0.00022191,2]
[368565363,1751211061267,-523.98,0.00022191,2]
[368565364,1751211061276,-490.0,0.00022191,2]
[368565365,1751211061286,-2725.21,0.00022191,2]
[368565366,1751211061295,-490.0,0.00022191,2]
[368565367,1751211061305,-490.0,0.00022191,2]
[368565368,1751211061314,-490.0,0.00022191,2]
[368565369,1751211061323,-490.0,0.00022191,2]
[368565370,1751211061332,-490.0,0.00022191,2]
[368565371,1751211061342,-1500.0,0.00022191,2]
[368565372,1751211061351,-490.0,0.00022191,2]
[368565373,1751211061360,-490.0,0.00022191,2]
[368565374,1751211061370,-490.0,0.00022191,2]
[368565375,1751211061379,-680.71,0.00022191,2]
[368565376,1751211061389,-490.0,0.00022191,2]
[368565377,1751211061399,-490.0,0.00022191,2]
[368565378,1751211061408,-490.0,0.00022191,2]
[368565379,1751211061418,-2178.0,0.00022191,2]
[368565380,1751211061428,-2531.77,0.00022191,2]
[368565381,1751211061437,-2067.9,0.00022191,2]
[368565382,1751211061447,-895.17,0.00022191,2]
[368565383,1751211061457,-490.0,0.00022191,2]
[368565384,1751211061466,-1344.1,0.00022191,2]
[368565385,1751211061475,-580.52,0.00022191,2]
[368565386,1751211061485,-1324.87,0.00022191,2]
[368565387,1751211061494,-582.66399043,0.00022191,2]
[368565388,1751211061504,-319.21315094,0.00022191,2]
[368565389,1751211061513,-2044.79,0.00022191,2]
[368565390,1751211061523,-499.07268004,0.00022191,2]
[368565391,1751211061533,-1916.1,0.00022191,2]
[368565392,1751211061542,-525.68,0.00022191,2]
[368565393,1751211061552,-381.40603427,0.00022191,2]
[368565394,1751211061561,-490.0,0.00022191,2]
[368565395,1751211061571,-490.0,0.00022191,2]
[368565396,1751211061580,-595.9704413,0.00022191,2]
[368565397,1751211061590,-490.0,0.00022191,2]
[368565398,1751211061599,-490.0,0.00022191,2]
[368565399,1751211061608,-490.0,0.00022191,2]
[368565400,1751211061617,-490.0,0.00022191,2]
[368565401,1751211061627,-490.0,0.00022191,2]
[368565402,1751211061636,-490.0,0.00022191,2]
[368565403,1751211061645,-490.0,0.00022191,2]
[368565404,1751211061655,-3513.89,0.00022191,2]
[368565405,1751211061664,-4039.032625,0.00022191,2]
[368565406,1751211061673,-1085.78,0.00022191,2]
[368565407,1751211061683,-490.0,0.00022191,2]
[368565408,1751211061692,-537.22,0.00022191,2]
[368565409,1751211061701,-490.0,0.00022191,2]
[368565410,1751211061710,-280.40075446,0.00022191,2]
[368565411,1751211061721,-917.88,0.00022191,2]
[368565412,1751211061731,-1153.76,0.00022191,2]
[368565413,1751211061741,-630.7,0.00022191,2]
[368565414,1751211061751,-490.0,0.00022191,2]
[368565415,1751211061761,-490.0,0.00022191,2]
[368565416,1751211061770,-492.38866843,0.00022191,2]
[368565417,1751211061780,-490.0,0.00022191,2]
[368565418,1751211061788,-681.35,0.00022191,2]
[368565419,1751211061798,-490.0,0.00022191,2]
[368565420,1751211061808,-539.19,0.00022191,2]
[368565421,1751211061817,-490.0,0.00022191,2]
[368565422,1751211061826,-3168.37,0.00022191,2]
[368565423,1751211061835,-490.0,0.00022191,2]
[368565424,1751211061844,-1966.49,0.00022191,2]
[368565425,1751211061853,-490.0,0.00022191,2]
[368565426,1751211061862,-2196.99,0.00022191,2]
[368565427,1751211061871,-490.0,0.00022191,2]
[368565428,1751211061882,-490.0,0.00022191,2]
[368565429,1751211061892,-550.0,0.00022191,2]
[368565430,1751211061901,-490.0,0.00022191,2]
[368565431,1751211061910,-1015.26,0.00022191,2]
[368565432,1751211061920,-1757.0,0.00022191,2]
[368565433,1751211061929,-1166.39,0.00022191,2]
[368565434,1751211061939,-568.45,0.00022191,2]
[368565435,1751211061948,-490.0,0.00022191,2]
[368565436,1751211061957,-1317.46,0.00022191,2]
[368565437,1751211061966,-2289.06,0.00022191,2]
[368565438,1751211061975,-490.0,0.00022191,2]
[368565439,1751211061984,-490.0,0.00022191,2]
[368565440,1751211061993,-490.0,0.00022191,2]
[368565441,1751211062004,-1946.74,0.00022191,2]
[368565442,1751211062013,-490.0,0.00022191,2]
[368565443,1751211062022,-490.0,0.00022191,2]
[368565444,1751211062031,-490.0,0.00022191,2]
[368565445,1751211062041,-178.78026707,0.00022191,2]
[368565446,1751211062050,-1504.05,0.00022191,2]
[368565447,1751211062059,-595.89,0.00022191,2]
[368565448,1751211062067,-2078.98,0.00022191,2]
[368565449,1751211062077,-1555.86,0.00022191,2]
[368565450,1751211062086,-2915.39,0.00022191,2]
[368565451,1751211062095,-581.78,0.00022191,2]
[368565452,1751211062104,-1038.47,0.00022191,2]
[368565453,1751211062113,-691.61,0.00022191,2]
[368565454,1751211062122,-1036.28,0.00022191,2]
[368565455,1751211062131,-1127.18,0.00022191,2]
[368565456,1751211062141,-2622.05,0.00022191,2]
[368565457,1751211062150,-490.0,0.00022191,2]
[368565458,1751211062159,-1009.82,0.00022191,2]
[368565459,1751211062169,-898.96,0.00022191,2]
[368565460,1751211062178,-490.0,0.00022191,2]
[368565461,1751211062187,-490.0,0.00022191,2]
[368565462,1751211062197,-1160.55,0.00022191,2]
[368565463,1751211062206,-490.0,0.00022191,2]
[368565464,1751211062215,-567.9,0.00022191,2]
[368565465,1751211062224,-490.0,0.00022191,2]
[368565466,1751211062234,-490.0,0.00022191,2]
[368565467,1751211062243,-1774.55,0.00022191,2]
[368565468,1751211062253,-2047.11,0.00022191,2]
[368565469,1751211062262,-814.16,0.00022191,2]
[368565470,1751211062271,-490.0,0.00022191,2]
[368565471,1751211062281,-495.78605399,0.00022191,2]
[368565472,1751211062291,-490.0,0.00022191,2]
[368565473,1751211062300,-490.0,0.00022191,2]
[368565474,1751211062309,-1483.88,0.00022191,2]
[368565475,1751211062318,-626.86,0.00022191,2]
[368565476,1751211062327,-259.16228151,0.00022191,2]
[368565477,1751211062336,-152.58635283,0.00022191,2]
[368565478,1751211062345,-490.0,0.00022191,2]
[368565479,1751211062355,-490.0,0.00022191,2]
[368565480,1751211062364,-553.14,0.00022191,2]
[368565481,1751211062373,-243.28871134,0.00022191,2]
[368565482,1751211062382,-2697.6,0.00022191,2]
[368565483,1751211062391,-584.88,0.00022191,2]
[368565484,1751211062401,-2089.45,0.00022191,2]
[368565485,1751211062410,-492.26512063,0.00022191,2]
[368565486,1751211062419,-490.0,0.00022191,2]
[368565487,1751211062429,-1065.05,0.00022191,2]
[368565488,1751211062438,-2981.66,0.00022191,2]
[368565489,1751211062447,-490.0,0.00022191,2]
[368565490,1751211062457,-490.0,0.00022191,2]
[368565491,1751211062466,-1590.18,0.00022191,2]
[368565492,1751211062475,-490.0,0.00022191,2]
[368565493,1751211062485,-490.0,0.00022191,2]
[368565494,1751211062494,-490.0,0.00022191,2]
[368565495,1751211062504,-490.0,0.00022191,2]
[368565496,1751211062513,-1949.43,0.00022191,2]
[368565497,1751211062523,-490.0,0.00022191,2]
[368565498,1751211062532,-490.0,0.00022191,2]
[368565499,1751211062541,-490.0,0.00022191,2]
[368565500,1751211062551,-490.0,0.00022191,2]
[368565501,1751211062560,-1161.67,0.00022191,2]
[368565502,1751211062569,-490.0,0.00022191,2]
[368565503,1751211062578,-490.0,0.00022191,2]
[368565504,1751211062587,-2439.44,0.00022191,2]
[368565505,1751211062597,-886.51,0.00022191,2]
[368565506,1751211062606,-2379.56,0.00022191,2]
[368565507,1751211062615,-490.0,0.00022191,2]
[368565508,1751211062625,-978.96,0.00022191,2]
[368565509,1751211062634,-490.0,0.00022191,2]
[368565510,1751211062644,-1543.55,0.00022191,2]
[368565511,1751211062653,-421.94912792,0.00022191,2]
[368565512,1751211062662,-559.9,0.00022191,2]
[368565513,1751211062671,-1339.58,0.00022191,2]
[368565514,1751211062681,-358.44751946,0.00022191,2]
[368565515,1751211062690,-490.0,0.00022191,2]
[368565516,1751211062700,-490.0,0.00022191,2]
[368565517,1751211062709,-864.29,0.00022191,2]
[368565518,1751211062719,-1964.82,0.00022191,2]
[368565519,1751211062732,-1060.7,0.00022191,2]
[368565520,1751211062741,-2056.47,0.00022191,2]
[368565521,1751211062751,-349.34671164,0.00022191,2]
[368565522,1751211062760,-490.0,0.00022191,2]
[368565523,1751211062770,-492.63970289,0.00022191,2]
[368565524,1751211062779,-2779.86,0.00022191,2]
[368565525,1751211062788,-401.26142104,0.00022191,2]
[368565526,1751211062797,-1156.75,0.00022191,2]
[368565527,1751211062807,-615.8,0.00022191,2]
[368565528,1751211062817,-591.04,0.00022191,2]
[368565529,1751211062826,-490.0,0.00022191,2]
[368565530,1751211062835,-490.0,0.00022191,2]
[368565531,1751211062845,-490.0,0.00022191,2]
[368565532,1751211062854,-490.0,0.00022191,2]
[368565533,1751211062863,-1690.58,0.00022191,2]
[368565534,1751211062872,-777.86,0.00022191,2]
[368565535,1751211062882,-937.6,0.00022191,2]
[368565536,1751211062891,-877.56,0.00022191,2]
[368565537,1751211062900,-738.13,0.00022191,2]
[368565538,1751211062910,-490.0,0.00022191,2]
[368565539,1751211062919,-490.0,0.00022191,2]
[368565540,1751211062928,-2472.85,0.00022191,2]
[368565541,1751211062937,-490.0,0.00022191,2]
[368565542,1751211062946,-490.0,0.00022191,2]
[368565543,1751211062956,-552.36,0.00022191,2]
[368565544,1751211062964,-1278.87,0.00022191,2]
[368565545,1751211062974,-1125.59,0.00022191,2]
[368565546,1751211062983,-730.1,0.00022191,2]
[368565547,1751211062992,-490.0,0.00022191,2]
[368565548,1751211063003,-490.0,0.00022191,2]
[368565549,1751211063012,-490.0,0.00022191,2]
[368565550,1751211063021,-490.0,0.00022191,2]
[368565551,1751211063030,-490.0,0.00022191,2]
[368565552,1751211063039,-2946.57,0.00022191,2]
[368565553,1751211063050,-1121.02,0.00022191,2]
[368565554,1751211063059,-1734.8,0.00022191,2]
[368565555,1751211063069,-2989.36,0.00022191,2]
[368565556,1751211063078,-2656.79,0.00022191,2]
[368565557,1751211063087,-520.11,0.00022191,2]
[368565558,1751211063097,-606.54,0.00022191,2]
[368565559,1751211063107,-531.54,0.00022191,2]
[368565560,1751211063116,-3444.5,0.00022191,2]
[368565561,1751211063125,-490.0,0.00022191,2]
[368565562,1751211063135,-490.0,0.00022191,2]
[368565563,1751211063144,-900.5,0.00022191,2]
[368565564,1751211063154,-1633.36,0.00022191,2]
[368565565,1751211063163,-877.89,0.00022191,2]
[368565566,1751211063172,-1658.34,0.00022191,2]
[368565567,1751211063182,-490.0,0.00022191,2]
[368565568,1751211063192,-2951.61,0.00022191,2]
[368565569,1751211063202,-1274.05,0.00022191,2]
[368565570,1751211063211,-490.0,0.00022191,2]
[368565571,1751211063221,-490.0,0.00022191,2]
[368565573,1751211063231,-490.0,0.00022191,2]
[368565574,1751211063240,-1363.14,0.00022191,2]
[368565575,1751211063249,-490.0,0.00022191,2]
[368565576,1751211063258,-490.0,0.00022191,2]
[368565577,1751211063267,-713.48,0.00022191,2]
[368565578,1751211063277,-490.0,0.00022191,2]
[368565579,1751211063286,-1085.06,0.00022191,2]
[368565580,1751211063296,-490.0,0.00022191,2]
[368565581,1751211063305,-720.05,0.00022191,2]
[368565582,1751211063314,-525.32,0.00022191,2]
[368565583,1751211063323,-490.0,0.00022191,2]
[368565584,1751211063333,-490.0,0.00022191,2]
[368565585,1751211063343,-1042.92,0.00022191,2]
[368565586,1751211063353,-490.0,0.00022191,2]
[368565587,1751211063362,-490.0,0.00022191,2]
[368565588,1751211063371,-490.0,0.00022191,2]
[368565589,1751211063381,-490.0,0.00022191,2]
[368565590,1751211063390,-442.45099863,0.00022191,2]
[368565591,1751211063399,-490.0,0.00022191,2]
[368565592,1751211063409,-490.0,0.00022191,2]
[368565593,1751211063419,-173.41815888,0.00022191,2]
[368565594,1751211063428,-348.91473621,0.00022191,2]
[368565595,1751211063438,-1267.97,0.00022191,2]
[368565596,1751211063447,-657.67,0.00022191,2]
[368565597,1751211063457,-499.14,0.00022191,2]
[368565598,1751211063467,-859.86,0.00022191,2]
[368565599,1751211063476,-490.0,0.00022191,2]
[368565600,1751211063486,-760.31,0.00022191,2]
[368565601,1751211063495,-490.0,0.00022191,2]
[368565602,1751211063507,-2462.82,0.00022191,2]
[368565603,1751211063517,-542.42,0.00022191,2]
[368565604,1751211063527,-490.0,0.00022191,2]
[368565605,1751211063536,-490.0,0.00022191,2]
[368565606,1751211063546,-490.0,0.00022191,2]
[368565607,1751211063556,-629.3,0.00022191,2]
[368565608,1751211063566,-457.58534114,0.00022191,2]
[368565609,1751211063576,-2038.63,0.00022191,2]
[368565610,1751211063586,-591.57,0.00022191,2]
[368565611,1751211063595,-2733.16,0.00022191,2]
[368565612,1751211063605,-857.75,0.00022191,2]
[368565613,1751211063614,-1850.88,0.00022191,2]
[368565614,1751211063624,-1997.94,0.00022191,2]
[368565615,1751211063633,-490.0,0.00022191,2]
[368565616,1751211063643,-490.0,0.00022191,2]
[368565617,1751211063653,-490.0,0.00022191,2]
[368565618,1751211063663,-2756.79,0.00022191,2]
[368565619,1751211063673,-598.0,0.00022191,2]
[368565620,1751211063682,-490.0,0.00022191,2]
[368565621,1751211063692,-608.76,0.00022191,2]
[368565622,1751211063701,-490.0,0.00022191,2]
[368565623,1751211063711,-490.0,0.00022191,2]
[368565624,1751211063721,-490.0,0.00022191,2]
[368565625,1751211063730,-490.0,0.00022191,2]
[368565626,1751211063743,-490.0,0.00022191,2]
[368565627,1751211063758,-3318.74,0.00022191,2]
[368565628,1751211063767,-546.92,0.00022191,2]
[368565629,1751211063777,-1626.25,0.00022191,2]
[368565630,1751211063787,-805.36,0.00022191,2]